Workbook

Sheet Prestaciones Sociales
L3: SALARIO PROMEDIO
B4: LIQUIDACION DE CONTRATO DE TRABAJO A TERMINO FIJO | L4: MES | M4: COMISIONES | N4: H.EXTRAS | O4: DOM Y FEST | P4: REC.NOCT.
B5: TECNOLOGIA MODULAR S.A.S
B6: NIT 900.580.736-4 | M6: COMISIONES
B7: NOMBRE DEL EMPLEADO: | L7: ENERO | M7: 0 | N7: 0 | O7: 0 | P7: 0
B8: C.C.: | L8: FEBRERO | M8: 0 | N8: 0 | O8: 0 | P8: 0
B9: CARGO: | L9: MARZO | M9: 0 | N9: 0 | O9: 0 | P9: 0
B10: CAUSA DE LA LIQUIDACION: | L10: ABRIL | M10: 0 | N10: 0 | O10: 0 | P10: 0
L11: MAYO | M11: 0 | N11: 0 | O11: 0 | P11: 0
B12: PERIODO DE LIQUIDACION | F12: SALARIO BASE DE LIQUIDACION: | L12: JUNIO | M12: 0 | N12: 0 | O12: 0 | P12: 0
B13: FECHA TERMINACION DE CONTRATO | C13: 2012-11-25 | F13: SUELDO BASICO: | J13: 1000000 | L13: JULIO | M13: 0 | N13: 0 | O13: 0 | P13: 0
B14: FECHA DE INICIO CONTRATO | C14: 2011-10-18 | F14: AUXILIO DE TRANSPORTE: | J14: 67800 | L14: AGOSTO | M14: 0 | N14: 0 | O14: 0 | P14: 0
B15: TIEMPO TOTAL LABORADO | C15: =DAYS360(C14,C13)+1 -> 398 | F15: PROMEDIO SALARIO VARIABLE | J15: =+P21 -> 0 | L15: SEPTIEMBRE | M15: 0 | N15: 0 | O15: 0 | P15: 0
F16: TOTAL BASE DE LIQUIDACION: | J16: =SUM(J13:J15) -> 1067800 | L16: OCTUBRE | M16: 0 | N16: 0 | O16: 0 | P16: 0
L17: NOVIEMBRE | M17: 0 | N17: 0 | O17: 0 | P17: 0
L18: DICIEMBRE | M18: 0 | N18: 0 | O18: 0 | P18: 0
B19: PRIMA | E19: CESANTIAS | L19: TOTAL | M19: =SUM(M7:M18) -> 0 | N19: =SUM(N7:N18) -> 0 | O19: 0 | P19: 0
B20: FECHA DE LIQUIDACION PRIMA | C20: 2012-06-30 | E20: FECHA DE LIQUIDACION CESANTIAS | J20: 2012-01-01 | L20: PROMEDIO | M20: =AVERAGE(M7:M18) -> 0 | N20: =AVERAGE(N7:N18) -> 0 | O20: 0 | P20: 0
B21: FECHA DE CORTE PRIMA | C21: =+C13 -> 2012-11-25 | E21: FECHA DE CORTE CESANTIAS | J21: =+C13 -> 2012-11-25 | P21: =SUM(M20:P20) -> 0
B22: DIAS PRIMA | C22: =DAYS360(C20,C21) -> 145 | E22: DIAS CESANTIAS | J22: =DAYS360(J20,J21) -> 324
B24: VACACIONES | E24: INTERESES A LAS CESANTIAS
B25: FECHA DE LIQUIDACION VACACIONES | C25: 2010-10-17 | E25: FECHA DE LIQUIDACION INTERESES | J25: =+J20 -> 2012-01-01
B26: FECHA DE CORTE VACACIONES | C26: =+C13 -> 2012-11-25 | E26: FECHA DE CORTE INTERESES | J26: =+J21 -> 2012-11-25
B27: TOTAL DIAS DE VACIONES | C27: =((15*(C26-C25-$J$17)/360))-0.25 -> 31.83333333 | E27: DIAS INTERESES | J27: =(DAYS360(J25,J26)*12%)/360 -> 0.108
B28: DIAS TOMADOS DE VACACIONES | C28: 0
B29: DIAS PENDIENTES | C29: =+C27-C28 -> 31.83333333
B31: RESUMEN LIQUIDACION PAGOS:
B32: VACACIONES PENDIENTES: | C32: =J16-J14 -> 1000000 | D32: / | E32: =C29 -> 31.83333333 | F32: x | G32: 30 | H32: = | J32: =((C32/G32)*E32) -> 1061111.111
B33: CESANTIAS: | C33: =J16 -> 1067800 | D33: / | E33: 360 | F33: x | G33: =J22-$J$17 -> 324 | J33: =((C33*G33)/E33) -> 961020
B34: INTERESES DE CESANTIAS | C34: =$J$33 -> 961020 | D34: / | E34: 360 | F34: x | G34: =J27-$J$17 -> 0.108 | H34: X | I34: 0.12 | J34: =((C34*G34*I34)/E34) -> 34.59672
B35: PRIMA SERVICIOS | C35: =J16 -> 1067800 | D35: / | E35: 360 | F35: x | G35: =C22 -> 145 | H35: = | J35: =((C35*G35)/E35) -> 430086.1111
B36: CESANTIAS: | C36: =+C35 -> 1067800 | D36: / | E36: 360 | F36: x | G36: =+J22 -> 324 | H36: = | J36: =((C36*G36)/E36) -> 961020
B37: INTERESES DE CESANTIAS | C37: =+J36 -> 961020 | F37: x | G37: =+J27 -> 0.108 | H37: = | J37: =+$C$37*$G$37 -> 103790.16
B38: INDEMNIZACION | J38: =+Indemnizaciones!C16+Indemnizaciones!F16+Indemnizaciones!I16 -> 6000000
B39: TOTAL DEVENGOS | J39: =SUM(J32:J38) -> 9517061.979
B40: RESUMEN DESCUENTOS LIQUIDACION :
B41: SALUD: | C41: 0.04 | J41: =(SUM(E41:G41)*-C41) -> 0 | L41: =J39-J44 -> 9517061.979
B42: PENSION: | C42: 0.04 | J42: =(SUM(E42:G42)*-C42) -> 0
B43: PRESTAMOS O ANTICIPOS: | J43: =SUM(E43:G43) -> 0
B44: TOTAL DEDUCCIONES | J44: =SUM(J41:J43) -> 0
B46: VALOR LIQUIDACION | J46: =ROUND(L41,0) -> 9517062
B47: =PesosMN(J46) -> SON: ( NUEVE MILLONES QUINIENTOS DIECISIETE MIL SESENTA Y DOS PESOS 00/100 M.N.)
B48: SE HACE CONSTAR:
B50: 1. Que el patrono ha incorporado en la presente liquidación los importes correspondientes a salarios, horas extras, descansos compensatorios, cesantías, vacaciones, prima de servicios, auxilio de transporte, y en sí, todo concepto relacionado con salarios, prestaciones o indemnizaciones causadas al quedar extinguido el contrato de trabajo.
B54: 2. Que con el pago del dinero anotado en la presente liquidación, queda transada cualquier diferencia relativa al contrato de trabajo extinguido, o a cualquier diferencia anterior. Por lo tanto, esta transacción tiene como efecto la terminaciónde las obligaciones provenientes de la relación laboral que existió entre EL EJEMPLO S.A y el trabajador, quienes declaran estar a paz y salvo por todo concepto.
I63: EL EMPLEADOR
B64: EL EMPLEADO | I64: NIT.
B65: C.C.

Sheet Indemnizaciones
B4: INDEMNIZACIONES POR DESPIDO SIN JUSTA CAUSA
B6: CONTRATO A TERMINO INDEFINIDO | H6: CONTRATO A TERMINO FIJO
B7: Art. 28 de la Ley 789 del 2002
B8: 1. Cuando el trabajador devenga MENOS de 10 SMMLV | E8: 2. Cuando el trabajador devenga MAS de 10 SMMLV | H8: Art. 64 del C.S.T.
B9: DETALLE | C9: DATOS | E9: DETALLE | F9: DATOS | H9: DETALLE | I9: DATOS
B10: SALARIO BASE | C10: 0 | E10: SALARIO BASE | F10: 6000000 | H10: SALARIO BASE | I10: 0
B11: FECHA DE INGRESO | C11: 2011-12-01 | E11: FECHA DE INGRESO | F11: 2011-12-01 | H11: FECHA INICIO DE CONTRATO | I11: =+F11 -> 2011-12-01
B12: FECHA DE RETIRO | C12: 2012-10-01 | E12: FECHA DE RETIRO | F12: =+C12 -> 2012-10-01 | H12: FECHA FIN DE CONTRATO | I12: 2012-12-01
B13: TIEMPO TRABAJADO | C13: =DAYS360(C11,C12) -> 300 | E13: TIEMPO TRABAJADO | F13: =DAYS360(F11,F12) -> 300 | H13: FECHA DE RETIRO | I13: 2012-10-31
C14: =30+(C13-360)*20/360 -> 26.66666667 | E14: DIAS A PAGAR | F14: =20+(F13-360)*15/360 -> 17.5 | H14: TIEMPO CONTRATADO | I14: =DAYS360(I11,I12)+1 -> 361
B15: DIAS A PAGAR POR INDEMNIZACION | C15: =IF(C14>=30,C14,30) -> 30 | E15: DIAS A PAGAR POR INDEMNIZACION | F15: =IF(F14>=30,F14,30) -> 30 | H15: DIAS QUE FALTAN PARA EL CONTRATO | I15: =(I14)-(DAYS360(I11,I13))+1 -> 32
B16: VALOR DE LA INDEMNIZACIÓN | C16: =+C10/30*C15 -> 0 | E16: INDEMNIZACIÓN | F16: =+F10/30*F15 -> 6000000 | H16: INDEMNIZACIÓN | I16: =+I10/30*I15 -> 0

Sheet Hoja3
